bitfinex-derivatives/quotes_BTCF0:USTF0_20250402
["timestamp","ask_amount","ask_price","bid_price","bid_amount"]
[1743631067187,0.3761697,84803.0,84802.0,0.2044104]
[1743631068991,0.3761697,84803.0,84802.0,0.08648]
[1743631069500,0.3761697,84803.0,84802.0,0.2044111]
[1743631069704,0.3761697,84803.0,84802.0,0.2040111]
[1743631070404,0.4804368,84803.0,84802.0,0.2040111]
[1743631070601,0.4804368,84803.0,84802.0,0.00048]
[1743631070800,0.5125071,84803.0,84758.0,0.4197955]
[1743631071005,0.1179798,84767.0,84766.0,0.0843]
[1743631071301,0.1179798,84767.0,84747.0,0.1180067]
[1743631071302,0.1179937,84757.0,84747.0,0.1180067]
[1743631071495,0.1179937,84757.0,84756.0,0.41839811]
[1743631071693,0.1180105,84745.0,84744.0,0.0843]
[1743631071894,0.1180105,84745.0,84744.0,0.00084]
[1743631071895,0.1188505,84745.0,84744.0,0.00084]
[1743631072197,0.12821578,84745.0,84744.0,0.00084]
[1743631072597,0.30301578,84745.0,84744.0,0.00084]
[1743631073398,0.18500528,84745.0,84742.0,0.48802277]
[1743631073605,0.1180202,84738.0,84737.0,0.54932265]
[1743631073802,0.1180383,84725.0,84719.0,0.1180455]
[1743631074103,0.21407831,84725.0,84724.0,0.3614]
[1743631074296,0.21407831,84725.0,84724.0,0.0006]
[1743631074495,0.09604001,84725.0,84707.0,0.28181074]
[1743631074695,0.1180545,84714.0,84710.0,0.1180579]
[1743631074907,0.1788,84713.0,84710.0,0.0889]
[1743631075105,0.1180568,84712.0,84710.0,0.0889]
[1743631075402,0.00132,84712.0,84710.0,0.0889]
[1743631075605,0.00132,84712.0,84711.0,0.1180578]
[1743631075800,0.00132,84712.0,84711.0,0.1186978]
[1743631076004,0.3608,84720.0,84719.0,0.1180467]
[1743631076209,0.36204001,84720.0,84719.0,0.1186467]
[1743631077010,0.48008531,84720.0,84719.0,0.0871]
[1743631079009,0.48008531,84720.0,84719.0,0.2051467]
[1743631079311,0.36204001,84720.0,84719.0,0.2051467]
[1743631079910,0.44724001,84720.0,84719.0,0.2051467]
[1743631080900,0.44724001,84720.0,84719.0,0.0871]
[1743631082402,0.44724001,84720.0,84716.0,0.0805834]
[1743631082806,0.44724001,84720.0,84718.0,0.1180475]
[1743631083011,0.1180467,84719.0,84716.0,0.0805834]
[1743631083201,0.446,84720.0,84716.0,0.0805834]
[1743631083407,0.0899,84718.0,84717.0,0.1180495]
[1743631084005,0.09088048,84718.0,84714.0,0.03808289]
[1743631084206,0.09088048,84718.0,84714.0,0.12208289]
[1743631084517,0.09088048,84718.0,84717.0,0.1180495]
[1743631091608,0.18288048,84718.0,84717.0,0.1180495]
[1743631092506,0.18288048,84718.0,84717.0,0.2039495]
[1743631096606,0.30092858,84718.0,84717.0,0.2039495]
[1743631097226,0.1180592,84710.0,84709.0,0.3608]
[1743631097518,0.45564,84710.0,84692.0,0.0868]
[1743631097714,0.45564,84710.0,84681.0,0.4514]
[1743631097715,0.0590423,84692.0,84681.0,0.4514]
[1743631098025,0.1180982,84682.0,84681.0,0.2082996]
[1743631098521,0.2030982,84682.0,84681.0,0.2082996]
[1743631098718,0.085,84682.0,84681.0,0.5690996]
[1743631098921,0.0590335,84705.0,84704.0,0.1180676]
[1743631098922,0.177102,84705.0,84704.0,0.1180676]
[1743631099120,0.178582,84705.0,84704.0,0.1180676]
[1743631100416,0.00017704,84713.0,84706.0,0.0590317]
[1743631100613,0.00017704,84713.0,84712.0,0.4788564]
[1743631101810,0.0589984,84755.0,84712.0,0.6914]
[1743631102017,0.0937,84748.0,84742.0,0.1180146]
[1743631102214,0.0937,84748.0,84747.0,0.1180077]
[1743631102515,0.001,84748.0,84747.0,0.1180077]
[1743631102717,0.01009357,84754.0,84753.0,0.1179993]
[1743631102914,0.0948,84764.0,84753.0,0.1179993]
[1743631102915,0.0923,84760.0,84759.0,0.117991]
[1743631103115,0.2102896,84760.0,84759.0,0.117991]
[1743631103327,0.00017704,84762.0,84761.0,0.1179882]
[1743631104326,0.31580683,84762.0,84759.0,0.33431471]
[1743631104624,0.31580683,84762.0,84761.0,0.1179882]
[1743631104815,0.31680683,84762.0,84761.0,0.1179882]
[1743631105017,0.31680683,84762.0,84761.0,0.2062282]
[1743631105517,0.21260591,84781.0,84772.0,0.1179729]
[1743631105722,0.38713156,84773.0,84772.0,0.4794129]
[1743631107321,0.00076,84773.0,84772.0,0.4794129]
[1743631107528,0.04580106,84785.0,84782.0,0.117959]
[1743631107727,6e-08,84785.0,84784.0,0.4787562]
[1743631108021,0.0905,84803.0,84788.0,0.1179506]
[1743631108224,0.37092825,84804.0,84795.0,0.1179409]
[1743631108426,0.15158742,84796.0,84795.0,0.4796209]
[1743631108618,0.42036684,84800.0,84799.0,0.1179353]
[1743631108817,0.38251065,84800.0,84799.0,0.1190553]
[1743631109223,0.34417935,84800.0,84799.0,0.1190553]
[1743631109426,0.31252785,84800.0,84799.0,0.1190553]
[1743631111123,0.00112001,84800.0,84799.0,0.1190553]
[1743631111729,0.00066058,84800.0,84799.0,0.1190553]
[1743631114021,0.0589493,84826.0,84825.0,0.1178992]
[1743631114227,0.0589493,84826.0,84825.0,0.1194592]
[1743631114428,0.0589493,84826.0,84825.0,0.1209392]
[1743631114626,0.0589493,84826.0,84825.0,0.1193792]
[1743631114830,0.1512493,84826.0,84825.0,0.1193792]
[1743631115230,0.1512493,84826.0,84825.0,0.12833065]
[1743631116318,0.2427493,84826.0,84825.0,0.12833065]
[1743631117322,0.25269546,84826.0,84825.0,0.12833065]
[1743631118822,0.19374616,84826.0,84825.0,0.12833065]
[1743631119023,0.1838,84826.0,84825.0,0.12833065]
[1743631119223,0.3016978,84826.0,84825.0,0.12833065]
[1743631121335,0.00017694,84834.0,84833.0,0.117888]
[1743631121530,0.00017694,84834.0,84833.0,0.480168]
[1743631122039,0.4197349,84847.0,84833.0,0.36228]
[1743631122333,0.5641698,84847.0,84846.0,0.11787]
[1743631122530,0.3608,84864.0,84863.0,0.1178464]
[1743631122719,0.0589184,84871.0,84869.0,0.0589176]
[1743631122922,0.176755,84871.0,84870.0,0.1178366]
[1743631123128,0.176755,84871.0,84870.0,0.1193166]
[1743631123528,0.176755,84871.0,84870.0,0.12827955]
[1743631124532,0.266455,84871.0,84870.0,0.12827955]
[1743631125338,0.266455,84871.0,84870.0,0.12787955]
[1743631126130,0.3608,84890.0,84870.0,0.37124295]
[1743631126328,0.1177983,84898.0,84897.0,0.1177978]
[1743631126630,0.1177983,84898.0,84897.0,0.1192778]
[1743631127135,0.12794172,84898.0,84897.0,0.1192778]
[1743631127534,0.01014342,84898.0,84897.0,0.1192778]
[1743631127735,0.1,84900.0,84899.0,0.1177964]
[1743631127938,0.1,84900.0,84899.0,0.1193564]
[1743631128430,0.1,84900.0,84899.0,0.00156]
[1743631128731,0.217795,84900.0,84899.0,0.00156]
[1743631131337,0.1,84900.0,84899.0,0.00156]
[1743631131840,0.1,84900.0,84899.0,0.1193564]
[1743631132637,0.1463917,84909.0,84906.0,0.1177848]
[1743631132829,0.0588792,84927.0,84922.0,0.1177638]
[1743631133031,0.0588799,84926.0,84922.0,0.00148]
[1743631133234,0.1177589,84927.0,84926.0,0.3608]
[1743631133543,0.1177589,84927.0,84926.0,0.36184]
[1743631135137,0.11887891,84927.0,84926.0,0.36184]
[1743631136141,0.11887891,84927.0,84926.0,0.3705957]
[1743631137630,0.2020332,84945.0,84926.0,0.3705957]
[1743631137940,0.117734,84944.0,84943.0,0.3608]
[1743631138140,0.11913401,84944.0,84943.0,0.36216]
[1743631139146,0.12087716,84944.0,84943.0,0.36216]
[1743631139644,0.12041781,84944.0,84943.0,0.36176]
[1743631140144,0.1177451,84936.0,84935.0,0.00017661]
[1743631140342,0.0588946,84905.0,84902.0,0.3608]
[1743631140538,0.1177908,84903.0,84902.0,0.3618]
[1743631140835,0.1177908,84903.0,84902.0,0.001]
[1743631141035,0.17992799,84912.0,84888.0,0.3608]
[1743631141036,0.1178103,84889.0,84888.0,0.3608]
[1743631141234,0.1178103,84889.0,84888.0,0.36176]
[1743631141435,0.11967579,84889.0,84888.0,0.36176]
[1743631141636,0.11967579,84889.0,84880.0,0.00017661]
[1743631141637,0.11782,84882.0,84880.0,0.00017661]
[1743631141839,0.3608,84882.0,84859.0,0.3608]
[1743631142039,0.1178353,84871.0,84870.0,0.29761252]
[1743631142244,0.117845,84864.0,84863.0,0.34334247]
[1743631142446,0.1178616,84852.0,84851.0,0.48901114]
[1743631142647,0.2121016,84852.0,84851.0,0.43048074]
[1743631142946,0.17992799,84861.0,84851.0,0.43048074]
[1743631142947,1.177373,84942.0,84851.0,0.15]
[1743631143136,0.0588806,84925.0,84902.0,0.3608]
[1743631143439,0.3608,84939.0,84923.0,0.1177631]
[1743631143440,0.1362,84924.0,84923.0,0.1177631]
[1743631143641,0.0862,84924.0,84923.0,0.4785631]
[1743631144235,0.00017657,84932.0,84931.0,0.117752]
[1743631144440,0.00017657,84932.0,84931.0,0.478552]
[1743631144640,0.11792717,84932.0,84931.0,0.3608]
[1743631144836,0.11792717,84932.0,84931.0,0.478552]
[1743631145037,0.11860717,84932.0,84931.0,0.479232]
[1743631145237,0.00085657,84932.0,84931.0,0.479232]
[1743631145538,0.11860717,84932.0,84931.0,0.479232]
[1743631146644,0.20750717,84932.0,84931.0,0.479232]
[1743631147052,0.20750717,84932.0,84931.0,0.48789529]
[1743631148144,0.20750717,84932.0,84931.0,0.37014329]
[1743631148449,0.058876,84931.0,84923.0,0.00017657]
[1743631148643,0.1177617,84924.0,84923.0,0.00017657]
[1743631148947,0.4792817,84924.0,84923.0,0.00017657]
[1743631149248,0.4792817,84924.0,84908.0,0.0588916]
[1743631149249,0.0588904,84911.0,84908.0,0.0588916]
[1743631149450,0.1177825,84909.0,84908.0,0.0006]
[1743631149649,0.1185825,84909.0,84908.0,0.0006]
[1743631150042,0.2915825,84909.0,84908.0,0.0006]
[1743631150237,0.1177992,84898.0,84896.0,0.06769385]
[1743631150445,0.1178047,84893.0,84892.0,0.4786061]
[1743631150639,0.1185247,84893.0,84892.0,0.1184061]
[1743631152447,8e-08,84905.0,84904.0,0.1177895]
[1743631152750,8e-08,84905.0,84904.0,0.4792695]
[1743631153449,0.0832552,84922.0,84910.0,0.0588904]
[1743631153645,0.0832552,84922.0,84921.0,0.4785659]
[1743631153845,0.0832552,84922.0,84921.0,0.4793259]
[1743631155744,0.0832552,84922.0,84921.0,0.5683259]
[1743631155941,0.00017668,84930.0,84929.0,0.1177548]
[1743631156139,0.00017668,84930.0,84929.0,0.4792348]
[1743631156952,0.00017668,84930.0,84929.0,0.6549348]
[1743631158354,0.11793008,84930.0,84929.0,0.5659348]
[1743631158554,0.11793008,84930.0,84929.0,0.00068]
[1743631158555,0.11869008,84930.0,84929.0,0.00068]
[1743631158852,0.1177645,84922.0,84921.0,0.4785651]
[1743631159044,0.1184045,84922.0,84921.0,0.00068]
[1743631159241,0.1177756,84914.0,84913.0,0.36097668]
[1743631159445,0.1184556,84914.0,84913.0,0.36165668]
[1743631159849,0.1184556,84914.0,84913.0,0.00085668]
[1743631160043,0.2079556,84914.0,84913.0,0.00017668]
[1743631160759,0.2955556,84914.0,84913.0,0.00017668]
[1743631163251,0.1178026,84895.0,84893.0,0.1178037]
[1743631163450,0.1185226,84895.0,84894.0,0.0883]
[1743631163651,0.1185226,84895.0,84894.0,0.08902]
[1743631167352,0.11806333,84895.0,84894.0,0.08862]
[1743631169363,0.20566333,84895.0,84894.0,0.08862]
[1743631169664,0.2061226,84895.0,84894.0,0.08862]
[1743631170865,0.10530293,84896.0,84894.0,0.08862]
[1743631171067,0.1178026,84895.0,84894.0,0.08862]
[1743631171270,0.11876261,84895.0,84894.0,0.08862]
[1743631175176,0.00096001,84895.0,84894.0,0.2064233]
[1743631175358,0.00096001,84895.0,84894.0,0.6561233]
[1743631175670,0.1404039,84899.0,84898.0,0.1177978]
[1743631175969,0.1404039,84899.0,84898.0,0.1189578]
[1743631178364,0.1404039,84899.0,84898.0,0.2970578]
[1743631178959,0.10550181,84900.0,84899.0,0.1177964]
[1743631179156,0.00017668,84903.0,84902.0,0.1177922]
[1743631179455,0.00077669,84903.0,84902.0,0.4797522]
[1743631179655,0.00017668,84903.0,84902.0,0.4797522]
[1743631180963,0.00017668,84903.0,84902.0,0.4793522]
[1743631181169,0.00017668,84903.0,84902.0,0.49517414]
[1743631181365,0.00017668,84903.0,84902.0,0.4793522]
[1743631182073,0.00133668,84903.0,84902.0,0.4793522]
[1743631183270,0.00017668,84903.0,84902.0,0.49451387]
[1743631184657,0.00017668,84903.0,84902.0,0.5108727]
[1743631184860,0.00017668,84903.0,84902.0,0.49451387]
[1743631185061,0.00017668,84903.0,84902.0,0.51087335]
[1743631185262,8e-08,84903.0,84902.0,0.66087335]
[1743631185476,0.0847,84922.0,84914.0,0.1177756]
[1743631185774,0.0699,84921.0,84920.0,0.1177673]
[1743631185970,0.07114001,84921.0,84920.0,0.1177673]
[1743631186161,0.07114001,84921.0,84920.0,0.1190073]
[1743631187061,0.07114001,84921.0,84920.0,0.13416897]
[1743631187463,0.0699,84921.0,84920.0,0.13416897]
[1743631187875,0.1888259,84921.0,84920.0,0.01640167]
[1743631188267,0.2696259,84921.0,84920.0,0.01640167]
[1743631188862,0.2696259,84921.0,84920.0,0.00124]
[1743631191679,0.32690026,84921.0,84920.0,0.00124]
[1743631194475,0.20913436,84921.0,84912.0,0.00017668]
[1743631194675,0.1767064,84894.0,84893.0,0.1178038]
[1743631194880,0.1767064,84894.0,84891.0,0.3608]
[1743631194881,0.1178061,84892.0,84891.0,0.3608]
[1743631195075,0.1186461,84892.0,84891.0,0.36164]
[1743631195575,0.00084,84892.0,84891.0,0.4794475]
[1743631195770,0.0004,84896.0,84895.0,0.1178019]
[1743631195974,0.0004,84896.0,84895.0,0.4794419]
[1743631196573,0.00100001,84896.0,84895.0,0.5650419]
[1743631197179,0.0004,84896.0,84895.0,0.5650419]
[1743631197385,0.00124,84896.0,84895.0,0.5650419]
[1743631198085,0.09392,84925.0,84901.0,0.0588966]
[1743631198280,0.0857,84915.0,84914.0,0.1177756]
[1743631198576,0.20459421,84915.0,84914.0,0.1188156]
[1743631198779,0.20459421,84915.0,84914.0,0.4796156]
[1743631198974,0.20459421,84915.0,84914.0,0.1188156]
[1743631199174,0.20459421,84915.0,84914.0,0.00104]
[1743631199777,0.1177853,84907.0,84906.0,0.36097668]
[1743631199970,0.11890531,84907.0,84906.0,0.36201668]
[1743631200177,0.47970531,84907.0,84906.0,0.00121668]
[1743631200378,0.47970531,84907.0,84858.0,0.0589263]
[1743631200379,0.51192001,84907.0,84858.0,0.0589263]
[1743631200577,0.1178366,84870.0,84869.0,0.0796]
[1743631200879,0.00060001,84870.0,84867.0,0.0589197]
[1743631201068,0.1178394,84868.0,84867.0,0.00076]
[1743631201272,0.1178616,84852.0,84851.0,0.0796]
[1743631201485,0.1652,84869.0,84854.0,0.1178589]
[1743631201486,0.09392,84855.0,84854.0,0.1178589]
[1743631201673,0.1178519,84861.0,84860.0,0.1178491]
[1743631201979,0.1652,84854.0,84852.0,0.0589284]
[1743631202178,0.22413,84854.0,84851.0,0.0006]
[1743631202382,0.22413,84854.0,84851.0,0.118503]
[1743631202383,0.1652,84854.0,84851.0,0.118503]
[1743631202569,0.117863,84851.0,84850.0,0.34868895]
[1743631202769,0.117863,84851.0,84850.0,0.21628895]
[1743631202973,0.117863,84851.0,84850.0,0.08548895]
[1743631203278,0.1178728,84844.0,84843.0,0.41868032]
[1743631204182,0.1178894,84832.0,84831.0,0.46405209]
[1743631204480,0.0589612,84809.0,84804.0,0.27968375]
[1743631204678,0.478727,84805.0,84804.0,0.27968375]
[1743631204878,0.0589696,84797.0,84792.0,0.30852622]
[1743631205183,0.1179756,84770.0,84769.0,0.60600299]
[1743631205387,0.1179756,84770.0,84728.0,0.95883717]
[1743631205388,0.1180188,84739.0,84728.0,0.95883717]
[1743631205573,0.5775388,84739.0,84728.0,0.89982037]
[1743631205883,0.1180202,84738.0,84737.0,0.58542695]
[1743631206085,0.3608,84739.0,84737.0,0.70344855]
[1743631206290,0.3608,84755.0,84746.0,0.1180091]
[1743631206585,0.3608,84791.0,84790.0,0.1179478]
[1743631206781,0.3608,84800.0,84799.0,0.1179353]
[1743631206782,0.45992,84800.0,84799.0,0.1179353]
[1743631207177,0.2177739,84800.0,84799.0,0.00068]
[1743631207378,0.1179353,84799.0,84798.0,0.0814]
[1743631207583,0.00064,84799.0,84798.0,0.082]
[1743631207783,0.1185753,84799.0,84798.0,0.0814]
[1743631208387,0.0589722,84793.0,84790.0,0.11812259]
[1743631208680,0.2170539,84800.0,84799.0,0.1179353]
[1743631208870,0.2177739,84800.0,84799.0,0.1179353]
[1743631209070,0.2977739,84800.0,84799.0,0.1175353]
[1743631209285,0.23260251,84802.0,84801.0,0.1179325]
[1743631209491,0.10410252,84802.0,84801.0,0.1186525]
[1743631209680,0.10422251,84802.0,84801.0,0.1186525]
[1743631209876,0.278422,84804.0,84803.0,0.1179297]
[1743631210181,0.278422,84804.0,84803.0,0.1187297]
[1743631210483,0.178422,84804.0,84803.0,0.1187297]
[1743631210684,0.2970703,84804.0,84803.0,0.1187297]
[1743631210987,0.4816103,84804.0,84803.0,0.0008]
[1743631211385,0.179142,84804.0,84803.0,0.1179297]
[1743631211578,0.179142,84804.0,84803.0,0.1186497]
[1743631212089,0.00017689,84807.0,84806.0,0.1179256]
[1743631212275,0.00017689,84807.0,84806.0,0.1189656]
[1743631212990,0.00017689,84807.0,84806.0,0.2010656]
[1743631213674,0.0807068,84807.0,84806.0,0.2010656]
[1743631213988,0.0807068,84807.0,84806.0,0.1179256]
[1743631214186,0.0807068,84807.0,84806.0,0.1185656]
[1743631214187,0.198631,84807.0,84806.0,0.1185656]
[1743631214489,0.199351,84807.0,84806.0,0.1185656]
[1743631214877,0.0814268,84807.0,84806.0,0.1185656]
[1743631215074,0.0807068,84807.0,84806.0,0.1185656]
[1743631215386,0.0807068,84807.0,84804.0,0.0589641]
[1743631215387,0.08130681,84807.0,84797.0,0.31095573]
[1743631215588,0.0814268,84807.0,84806.0,0.1179256]
[1743631215772,0.0807068,84807.0,84806.0,0.1185656]
[1743631216383,0.0807068,84807.0,84806.0,0.3608]
[1743631216585,0.0807068,84807.0,84806.0,0.1185256]
[1743631216884,0.560351,84807.0,84806.0,0.0006]
[1743631217092,0.176912,84798.0,84797.0,0.1179371]
[1743631217388,0.0589724,84793.0,84749.0,0.00872249]
[1743631217591,0.1179951,84756.0,84755.0,0.0776]
[1743631217779,0.45936,84756.0,84755.0,0.1955965]
[1743631218087,0.46044001,84756.0,84755.0,0.1955965]
[1743631218277,0.46044001,84756.0,84755.0,0.2809965]
[1743631218478,0.00108001,84756.0,84755.0,0.2809965]
[1743631218675,0.1574566,84787.0,84783.0,0.1179562]
[1743631218878,0.00108001,84787.0,84786.0,0.1179534]
[1743631219082,0.00108001,84787.0,84786.0,0.1185534]
[1743631219279,0.3608,84790.0,84789.0,0.1179492]
[1743631219496,0.09852,84799.0,84798.0,0.1179367]
[1743631219794,0.00076,84799.0,84798.0,0.1187367]
[1743631219977,0.4258266,84815.0,84814.0,0.1179144]
[1743631220185,0.7872666,84815.0,84812.0,0.1179144]
[1743631220378,0.7872666,84815.0,84814.0,0.1179144]
[1743631220687,0.9051797,84815.0,84814.0,0.00064]
[1743631220890,0.9051797,84815.0,84814.0,0.16714]
[1743631221185,0.1179353,84799.0,84798.0,0.0817]
[1743631221391,0.11853531,84799.0,84798.0,0.0817]
[1743631221690,0.1769157,84796.0,84793.0,0.0589718]
[1743631221990,0.5384357,84796.0,84795.0,0.1179367]
[1743631222187,0.5384357,84796.0,84795.0,0.00064]
[1743631222381,0.1179464,84791.0,84790.0,0.00017689]
[1743631222579,0.1179464,84791.0,84790.0,0.11812469]
[1743631222580,0.1188664,84791.0,84790.0,0.11812469]
[1743631222779,0.1188664,84791.0,84790.0,0.00017689]
[1743631223191,0.1188664,84791.0,84790.0,0.00109689]
[1743631223392,0.1188664,84791.0,84790.0,0.11812469]
[1743631223585,0.1188664,84791.0,84790.0,0.11872469]
[1743631223995,0.1184073,84791.0,84790.0,0.00048]
[1743631224190,0.1184073,84791.0,84767.0,0.4197897]
[1743631224191,0.2359386,84778.0,84777.0,0.1179604]
[1743631224386,0.1189658,84778.0,84777.0,0.00064]
[1743631224593,0.001,84778.0,84777.0,0.12691178]
[1743631224889,0.117962,84784.0,84783.0,0.0589774]
[1743631225085,0.11892201,84784.0,84783.0,0.0595774]
[1743631225279,0.11892201,84784.0,84783.0,0.0006]
[1743631225495,0.00096001,84784.0,84783.0,0.1185576]
[1743631225881,0.00096001,84784.0,84783.0,0.2828576]
[1743631226585,0.11891621,84784.0,84783.0,0.1649]
[1743631226787,0.28251621,84784.0,84783.0,0.0844]
[1743631227087,0.28251621,84784.0,84777.0,0.00880516]
[1743631227088,0.117959,84782.0,84781.0,0.1179599]
[1743631227290,0.117959,84782.0,84776.0,0.0589834]
[1743631227291,0.1179673,84776.0,84762.0,0.3608]
[1743631227488,0.11900731,84776.0,84775.0,9e-08]
[1743631227890,0.26900731,84776.0,84775.0,9e-08]
[1743631228092,0.42810731,84776.0,84775.0,9e-08]
[1743631229096,0.118023,84736.0,84732.0,0.0590141]
[1743631229291,0.1770357,84736.0,84735.0,0.1180218]
[1743631229492,0.17799571,84736.0,84735.0,0.1186218]
[1743631229693,0.05997271,84736.0,84735.0,0.1186218]
[1743631230089,0.00096001,84736.0,84735.0,0.1186218]
[1743631230287,0.00096001,84736.0,84735.0,0.4794218]
[1743631230487,0.00017702,84744.0,84735.0,0.4794218]
[1743631230488,0.00017702,84744.0,84743.0,0.1180132]
[1743631230703,0.1179872,84762.0,84761.0,0.0589935]
[1743631230900,0.1179872,84762.0,84761.0,0.2244935]
[1743631231101,0.1179872,84762.0,84761.0,0.2251335]
[1743631231301,0.1187072,84762.0,84761.0,0.00064]
[1743631231491,0.1179872,84762.0,84761.0,0.1179882]
[1743631231693,0.1769993,84757.0,84756.0,0.1769818]
[1743631232087,0.1769993,84757.0,84740.0,0.0674418]
[1743631232300,0.1769993,84757.0,84756.0,0.1179868]
[1743631232801,0.09832,84761.0,84760.0,0.1179896]
[1743631233394,0.09832,84761.0,84754.0,0.0589987]
[1743631233395,0.45912,84761.0,84754.0,0.0589987]
[1743631233696,0.0795,84771.0,84754.0,0.0589987]
[1743631233697,0.3608,84779.0,84769.0,0.117977]
[1743631233903,0.1769275,84788.0,84787.0,0.1179506]
[1743631234099,0.1375756,84788.0,84787.0,0.1179506]
[1743631234497,0.1769481,84781.0,84780.0,0.1179545]
[1743631234699,0.3608,84781.0,84780.0,0.1179545]
[1743631234997,0.36097691,84789.0,84788.0,0.1179506]
[1743631235197,0.00017691,84789.0,84788.0,0.1179506]
[1743631235400,0.36097691,84789.0,84788.0,0.1179506]
[1743631235695,0.36097691,84789.0,84785.0,0.058976]
[1743631235908,0.00017691,84789.0,84788.0,0.1179506]
[1743631236215,0.47892611,84789.0,84788.0,0.1179506]
[1743631236499,0.36165691,84789.0,84788.0,0.1185506]
[1743631236700,0.47960611,84789.0,84788.0,0.1185506]
[1743631236902,0.1179715,84773.0,84768.0,0.0589886]
[1743631237090,0.4796115,84773.0,84770.0,0.0589872]
[1743631237295,0.4796115,84773.0,84772.0,0.00085691]
[1743631237702,0.4796115,84773.0,84772.0,0.01630644]
[1743631237896,0.1180007,84752.0,84751.0,0.11977186]
[1743631238102,0.4796407,84752.0,84751.0,0.13619446]
[1743631238299,0.36164,84752.0,84751.0,0.13619446]
[1743631238501,0.4796407,84752.0,84751.0,0.13619446]
[1743631238698,0.36164,84752.0,84751.0,0.13619446]
[1743631238909,0.1179715,84775.0,84772.0,0.1769538]
[1743631239100,0.2001715,84775.0,84774.0,0.1179687]
[1743631239311,0.1179924,84758.0,84757.0,0.1769855]
[1743631239507,0.58698491,84775.0,84758.0,0.1179924]
[1743631239508,0.3608,84759.0,84758.0,0.1179924]
[1743631239698,0.0589908,84766.0,84758.0,0.0163278]
[1743631239908,0.28111695,84752.0,84743.0,0.059005]
[1743631240207,0.1180188,84744.0,84743.0,0.059005]
[1743631240511,0.118023,84738.0,84737.0,0.1770283]
[1743631240702,0.479583,84738.0,84737.0,0.19341169]
[1743631240895,0.479583,84738.0,84737.0,0.0596501]
[1743631241605,0.36156,84738.0,84737.0,0.0590101]
[1743631241811,0.00076,84738.0,84737.0,0.0596101]
[1743631242011,0.00017702,84746.0,84745.0,0.1180105]
[1743631242211,0.00093702,84746.0,84745.0,0.1186105]
[1743631243109,0.47974612,84746.0,84745.0,0.0006]
[1743631243320,0.2360406,84742.0,84741.0,0.1180105]
[1743631243503,0.2368406,84742.0,84741.0,0.1186505]
[1743631244212,0.2368406,84742.0,84741.0,0.00064]
[1743631244410,0.1180313,84730.0,84725.0,0.1180374]
[1743631244615,0.4796713,84730.0,84729.0,0.00095947]
[1743631244813,0.118069,84703.0,84700.0,0.1]
[1743631245015,0.11910901,84703.0,84702.0,0.00241079]
[1743631245319,0.47990901,84703.0,84702.0,0.00305079]
[1743631245509,0.1180718,84701.0,84700.0,0.1]
[1743631245705,0.0590478,84687.0,84686.0,0.1180859]
[1743631245907,0.5379391,84687.0,84686.0,0.0006]
[1743631246101,0.1180982,84682.0,84681.0,0.00874102]
[1743631246302,0.1191782,84682.0,84681.0,0.00874102]
[1743631246506,0.118109,84675.0,84674.0,0.1181094]
[1743631246707,0.47994801,84675.0,84674.0,0.0006]
[1743631246910,0.66792801,84675.0,84674.0,0.0006]
[1743631247110,0.54982001,84675.0,84630.0,0.31847524]
[1743631247320,0.3608,84669.0,84665.0,0.0590608]
[1743631247611,0.3608,84666.0,84665.0,0.0590608]
[1743631247810,0.26204001,84666.0,84665.0,0.0590608]
[1743631248011,0.00124001,84666.0,84665.0,0.0596608]
[1743631248216,0.3608,84673.0,84672.0,0.1181122]
[1743631248410,0.36220001,84673.0,84672.0,0.1187522]
[1743631248615,0.00140001,84673.0,84672.0,0.1187522]
[1743631248813,0.1771423,84685.0,84674.0,0.1181094]
[1743631249012,0.05739085,84687.0,84674.0,0.1187494]
[1743631249213,0.31819085,84691.0,84690.0,0.1180871]
[1743631249427,0.31915086,84691.0,84690.0,0.1186871]
[1743631250026,0.43723656,84691.0,84690.0,0.0006]
[1743631250314,0.43723656,84691.0,84668.0,0.0590584]
[1743631250315,0.31915086,84691.0,84673.0,0.3608]
[1743631250518,0.1795,84690.0,84673.0,0.3614]
[1743631250712,0.1180926,84688.0,84687.0,0.1180885]
[1743631251115,0.18054001,84688.0,84687.0,0.0006]
[1743631251317,0.29862991,84688.0,84687.0,0.1180913]
[1743631251518,0.29862991,84688.0,84687.0,0.1186913]
[1743631252020,0.20672991,84688.0,84687.0,0.1186913]
[1743631252319,0.0590594,84668.0,84667.0,0.1181187]
[1743631252622,0.0597204,84668.0,84667.0,0.1187187]
[1743631252820,0.168841,84668.0,84667.0,0.1187187]
[1743631253020,0.069721,84668.0,84667.0,0.1187187]
[1743631253414,0.26185712,84684.0,84683.0,0.1180969]
[1743631253612,0.38067262,84684.0,84683.0,0.1188169]
[1743631253917,0.0590497,84682.0,84681.0,0.1180969]
[1743631254219,0.0590497,84682.0,84648.0,0.3608]
[1743631254220,0.1181248,84663.0,84662.0,0.3608]
[1743631254415,0.1181248,84663.0,84662.0,0.0006]
[1743631254625,0.1772015,84659.0,84658.0,0.1181313]
[1743631254921,0.53904151,84659.0,84658.0,0.00957844]
[1743631255216,0.17824151,84659.0,84658.0,0.00889844]
[1743631255421,0.17824151,84659.0,84654.0,0.00017712]
[1743631255422,0.1181359,84655.0,84654.0,0.00017712]
[1743631255616,0.1191359,84655.0,84654.0,0.00017712]
[1743631256124,0.2994359,84655.0,84654.0,0.00017712]
[1743631256417,0.1813,84655.0,84623.0,0.37135793]
[1743631256623,0.1181652,84634.0,84633.0,0.3614]
[1743631256812,0.21744521,84634.0,84633.0,0.3614]
[1743631257007,0.21744521,84634.0,84633.0,0.4795666]
[1743631257312,0.09928001,84634.0,84633.0,0.4795666]
[1743631257709,0.3608,84646.0,84645.0,0.1181499]
[1743631258023,0.3608,84655.0,84654.0,0.1181373]
[1743631258218,0.12885036,84657.0,84656.0,0.1181345]
[1743631258412,0.11917311,84657.0,84656.0,0.1187345]
[1743631258616,0.11917311,84657.0,84656.0,0.0006]
[1743631258814,0.47997311,84657.0,84656.0,0.2040345]
[1743631259217,0.47997311,84657.0,84656.0,0.0006]
[1743631259427,0.47997311,84657.0,84645.0,0.0590747]
[1743631259428,0.0590706,84652.0,84649.0,0.0853]
[1743631259723,0.1181429,84650.0,84649.0,0.0859]
[1743631259924,0.11918291,84650.0,84649.0,0.0853]
[1743631260417,0.00104001,84650.0,84649.0,0.1181443]
[1743631260625,0.3608,84674.0,84658.0,0.1181289]
[1743631260811,0.47988341,84664.0,84663.0,0.1181248]
[1743631261017,0.47988341,84664.0,84661.0,0.1181275]
[1743631261018,0.1771912,84662.0,84661.0,0.1181275]
[1743631261323,0.1771912,84662.0,84633.0,0.3608]
[1743631261324,0.95239291,84662.0,84633.0,0.3608]
[1743631261512,0.118163,84641.0,84640.0,0.1181514]
[1743631261718,0.1966857,84641.0,84640.0,0.1187914]